bitfinex/quotes_BTCUSD_20250714
["timestamp","ask_amount","ask_price","bid_price","bid_amount"]
[1752499511748,0.55134344,121590.0,121580.0,0.05342079]
[1752499511965,0.55956753,121590.0,121580.0,0.05342079]
[1752499512176,0.56779141,121590.0,121580.0,0.05342079]
[1752499512632,0.57601563,121590.0,121580.0,0.05342079]
[1752499512847,0.70529563,121590.0,121580.0,0.05442079]
[1752499513065,0.69707141,121590.0,121580.0,0.05442079]
[1752499513519,0.57601563,121590.0,121580.0,0.05442079]
[1752499513733,0.56779141,121590.0,121580.0,0.02171517]
[1752499514158,0.57601563,121590.0,121580.0,0.02171517]
[1752499514374,0.57601556,121590.0,121580.0,0.02171517]
[1752499514578,0.56779141,121590.0,121580.0,0.02171507]
[1752499514823,0.57601563,121590.0,121580.0,0.02171507]
[1752499515264,0.58423992,121590.0,121580.0,0.02171507]
[1752499515488,0.57601604,121590.0,121580.0,0.02171507]
[1752499515698,0.70513604,121590.0,121580.0,0.02171507]
[1752499515972,0.73092236,121590.0,121580.0,0.01848507]
[1752499516640,0.69892236,121590.0,121580.0,0.01848507]
[1752499518462,0.69884236,121590.0,121580.0,0.01848507]
[1752499518755,0.32021008,121590.0,121580.0,0.01848507]
[1752499518980,0.690578,121590.0,121580.0,0.02147507]
[1752499519242,0.69057773,121590.0,121580.0,0.02147507]
[1752499519465,0.55956725,121590.0,121580.0,0.02147507]
[1752499519678,0.5677914,121590.0,121580.0,0.02147507]
[1752499519900,0.02467185,121590.0,121580.0,0.02147507]
[1752499520117,0.70505549,121590.0,121580.0,0.02147507]
[1752499520363,0.53234413,121590.0,121580.0,0.05337507]
[1752499520592,0.15207365,121590.0,121580.0,0.05337507]
[1752499520803,0.40166599,121590.0,121580.0,0.05337507]
[1752499521020,0.40166593,121590.0,121580.0,0.05337507]
[1752499521291,0.01480956,121590.0,121580.0,0.05337507]
[1752499521516,0.00822388,121590.0,121580.0,0.08447507]
[1752499521795,0.01644783,121590.0,121580.0,0.08447507]
[1752499522089,0.00822375,121590.0,121580.0,0.08447507]
[1752499522341,0.01037621,121600.0,121590.0,0.0637]
[1752499522571,0.58637567,121600.0,121590.0,0.02040507]
[1752499522796,0.55955271,121600.0,121590.0,0.02040507]
[1752499523215,0.56777639,121600.0,121590.0,0.02038334]
[1752499523431,0.18092043,121600.0,121590.0,0.02038334]
[1752499523651,0.56777632,121600.0,121590.0,0.02038232]
[1752499524299,0.56777625,121600.0,121590.0,0.02038232]
[1752499524509,0.57599986,121600.0,121590.0,0.02038232]
[1752499524851,0.55955271,121600.0,121590.0,0.02038232]
[1752499525074,0.55955271,121600.0,121590.0,0.08328232]
[1752499525075,0.00822307,121600.0,121590.0,0.08328232]
[1752499525503,0.01644628,121600.0,121590.0,0.08328232]
[1752499525709,0.39507856,121600.0,121590.0,0.08328232]
[1752499525918,0.4033019,121600.0,121590.0,0.08328232]
[1752499526350,0.41152538,121600.0,121590.0,0.05148232]
[1752499526547,0.57599906,121600.0,121590.0,0.05148232]
[1752499526750,0.59876359,121600.0,121590.0,0.02038232]
[1752499526958,0.58429731,121600.0,121590.0,0.02038232]
[1752499527096,0.60847397,121600.0,121590.0,0.02038232]
[1752499527825,0.57607397,121600.0,121590.0,0.02038232]
[1752499529325,0.58429724,121600.0,121590.0,0.02038232]
[1752499529527,0.57409356,121600.0,121590.0,0.02038232]
[1752499529750,0.58231717,121600.0,121590.0,0.02038232]
[1752499529972,0.59054085,121600.0,121590.0,0.02038232]
[1752499530423,0.58067958,121600.0,121590.0,0.02038232]
[1752499530662,0.59054085,121600.0,121590.0,0.02038232]
[1752499531959,0.59054085,121600.0,121590.0,0.02038883]
[1752499532171,0.21190857,121600.0,121590.0,0.02038883]
[1752499532383,0.59054085,121600.0,121590.0,0.02039132]
[1752499533010,0.58231758,121600.0,121590.0,0.02039132]
[1752499534065,0.57409356,121600.0,121590.0,0.02039132]
[1752499534322,0.58231717,121600.0,121590.0,0.02039132]
[1752499534724,0.41784315,121600.0,121590.0,0.02039132]
[1752499534915,0.58231677,121600.0,121590.0,0.02039132]
[1752499535217,0.03921081,121600.0,121590.0,0.02039132]
[1752499535451,0.59054038,121600.0,121590.0,0.02039132]
[1752499536649,0.58231677,121600.0,121590.0,0.02039132]
[1752499537027,0.59054031,121600.0,121590.0,0.02039132]
[1752499537613,0.59054031,121600.0,121590.0,0.0204081]
[1752499537822,0.41784309,121600.0,121590.0,0.0204081]
[1752499538029,0.59054038,121600.0,121590.0,0.0204081]
[1752499538230,0.40961961,121600.0,121590.0,0.0204081]
[1752499538642,0.02763885,121610.0,121590.0,0.0844081]
[1752499538851,0.35156746,121610.0,121600.0,0.00299]
[1752499539062,0.76227974,121610.0,121600.0,0.0204081]
[1752499540530,0.74698282,121610.0,121600.0,0.01742345]
[1752499541207,0.61854282,121610.0,121600.0,0.01742345]
[1752499541392,0.74694282,121610.0,121600.0,0.01742345]
[1752499541584,0.74694282,121610.0,121600.0,0.01742564]
[1752499542201,0.74694282,121610.0,121600.0,0.02041564]
[1752499544380,0.74682282,121610.0,121600.0,0.02041564]
[1752499545430,0.73860002,121610.0,121600.0,0.02041564]
[1752499545643,0.73860002,121610.0,121600.0,0.01742564]
[1752499545866,0.60209702,121610.0,121600.0,0.01742564]
[1752499546080,1.1425293,121610.0,121600.0,0.01538564]
[1752499546303,0.76389702,121610.0,121600.0,0.01538564]
[1752499546718,1.1425293,121610.0,121600.0,0.01538564]
[1752499547558,1.1425693,121610.0,121600.0,0.01538564]
[1752499549026,1.1425293,121610.0,121600.0,0.01538564]
[1752499549446,0.01644898,121580.0,121570.0,0.06602102]
[1752499549651,0.37863228,121580.0,121570.0,0.08043448]
[1752499550238,0.37863228,121580.0,121570.0,0.08340449]
[1752499550453,0.22106841,121590.0,121570.0,0.08340449]
[1752499550656,0.37863228,121580.0,121570.0,0.08043449]
[1752499551284,0.37863228,121580.0,121570.0,0.08640449]
[1752499551485,0.37863228,121580.0,121570.0,0.08840449]
[1752499551692,0.3868567,121580.0,121570.0,0.08840449]
[1752499551897,0.3574527,121590.0,121570.0,0.08840449]
[1752499552104,0.37863228,121580.0,121570.0,0.08543449]
[1752499552298,0.37863228,121580.0,121570.0,0.08543759]
[1752499552649,0.36877073,121580.0,121570.0,0.08543759]
[1752499552868,0.36877073,121580.0,121570.0,0.08840759]
[1752499553490,0.36877073,121580.0,121570.0,0.08640759]
[1752499554844,0.36877073,121580.0,121570.0,0.08840759]
[1752499555874,0.36877073,121580.0,121570.0,0.08640759]
[1752499556096,0.36877073,121580.0,121570.0,0.08840759]
[1752499556773,0.36877073,121580.0,121570.0,0.05710759]
[1752499558022,0.34922828,121590.0,121570.0,0.04171102]
[1752499558240,0.37863228,121580.0,121570.0,0.05710593]
[1752499558430,0.37863228,121580.0,121570.0,0.02540593]
[1752499558639,0.37863228,121580.0,121570.0,0.02540553]
[1752499559216,0.37863228,121580.0,121570.0,0.02340553]
[1752499559407,0.37863228,121580.0,121570.0,0.02540553]
[1752499559565,0.36877058,121580.0,121570.0,0.02540553]
[1752499559768,0.36877058,121580.0,121570.0,0.02340553]
[1752499560154,0.49661058,121580.0,121570.0,0.02340553]
[1752499560794,0.36877058,121580.0,121570.0,0.02340553]
[1752499560961,0.49661058,121580.0,121570.0,0.02340553]
[1752499561665,0.49661058,121580.0,121570.0,0.02540553]
[1752499562157,0.08817164,121590.0,121570.0,0.02540553]
[1752499562360,0.50639228,121580.0,121570.0,0.02540553]
[1752499562896,0.50639228,121580.0,121570.0,0.02340553]
[1752499564124,0.21593164,121590.0,121570.0,0.02340553]
[1752499564375,0.37863228,121580.0,121570.0,0.02240553]
[1752499565056,0.37863228,121580.0,121570.0,0.00701102]
[1752499565261,0.37863228,121580.0,121570.0,0.00501102]
[1752499565508,0.38864292,121590.0,121570.0,0.00501102]
[1752499565709,0.77549929,121590.0,121570.0,0.00701102]
[1752499566273,0.7656376,121590.0,121570.0,0.02240283]
[1752499566473,0.76563732,121590.0,121570.0,0.02240283]
[1752499566888,0.76563732,121590.0,121570.0,0.02540283]
[1752499567094,0.77386154,121590.0,121570.0,0.02540283]
[1752499567393,0.37863228,121580.0,121570.0,0.02340283]
[1752499567709,0.37863228,121580.0,121570.0,0.02540239]
[1752499568318,0.37863228,121580.0,121570.0,0.02040239]
[1752499568518,0.37863228,121580.0,121570.0,0.02340239]
[1752499569045,0.37863228,121580.0,121570.0,0.02540239]
[1752499569695,0.3687705,121580.0,121570.0,0.02540239]
[1752499569928,0.4963305,121580.0,121570.0,0.02540239]
[1752499570153,0.12756,121580.0,121570.0,0.02540239]
[1752499570556,0.12756,121580.0,121570.0,0.0254028]
[1752499572368,0.12744,121580.0,121570.0,0.0254028]
[1752499572696,0.62965369,121590.0,121570.0,0.0254028]
[1752499572908,0.12744,121580.0,121570.0,0.0254028]
[1752499573933,0.12744,121580.0,121570.0,0.0234028]
[1752499574138,0.61320674,121590.0,121570.0,0.0234028]
[1752499574375,0.61320674,121590.0,121570.0,0.0224328]
[1752499574376,0.53900228,121580.0,121570.0,0.0224328]
[1752499574785,0.54722684,121580.0,121570.0,0.0204328]
[1752499574996,0.53900228,121580.0,121570.0,0.0204328]
[1752499575200,0.57742677,121580.0,121570.0,0.0224328]
[1752499575641,0.74192751,121580.0,121570.0,0.0224328]
[1752499575865,0.75015214,121580.0,121570.0,0.0224328]
[1752499576060,0.56920228,121580.0,121570.0,0.0224328]
[1752499576279,0.19879449,121580.0,121570.0,0.02244283]
[1752499576505,0.57742677,121580.0,121570.0,0.02244283]
[1752499576739,0.19879449,121580.0,121570.0,0.02244266]
[1752499577161,0.16859449,121580.0,121570.0,0.02244266]
[1752499577859,0.75005214,121580.0,121570.0,0.02045266]
[1752499578027,0.44988677,121580.0,121570.0,0.02045266]
[1752499578451,0.57732677,121580.0,121570.0,0.02045266]
[1752499578872,0.74182751,121580.0,121570.0,0.02045266]
[1752499579350,0.75005214,121580.0,121570.0,0.02045266]
[1752499579552,0.74182751,121580.0,121570.0,0.02045266]
[1752499579843,0.73196518,121580.0,121570.0,0.02045266]
[1752499579996,0.56867444,121580.0,121570.0,0.02340266]
[1752499580193,0.56867444,121580.0,121570.0,0.02553266]
[1752499580405,0.74139981,121580.0,121570.0,0.02553266]
[1752499581452,0.43300995,121580.0,121570.0,0.02553266]
[1752499581604,0.15171767,121580.0,121570.0,0.02553266]
[1752499582243,0.50607228,121580.0,121570.0,0.02553266]
[1752499582658,0.4325,121590.0,121570.0,0.02553266]
[1752499582882,0.22166291,121600.0,121580.0,0.44113228]
[1752499583107,0.1891436,121600.0,121580.0,0.07790164]
[1752499583329,0.63769956,121600.0,121580.0,0.07790164]
[1752499583548,0.12744,121590.0,121580.0,0.01540164]
[1752499583759,0.12744,121590.0,121580.0,0.02048164]
[1752499584178,0.12744,121590.0,121580.0,0.02248164]
[1752499584861,0.12744,121590.0,121580.0,0.02347954]
[1752499585091,0.63769989,121600.0,121580.0,0.02347954]
[1752499585323,0.12744,121590.0,121580.0,0.02347954]
[1752499585563,0.24916689,121610.0,121590.0,0.00295]
[1752499585795,0.30013682,121600.0,121590.0,0.01834954]
[1752499586020,0.34965357,121600.0,121590.0,0.02047954]
[1752499586488,0.35623888,121600.0,121590.0,0.02047954]
[1752499586745,0.35623841,121600.0,121590.0,0.02047954]
[1752499586960,0.36446202,121600.0,121590.0,0.02147954]
[1752499587241,0.39586202,121600.0,121590.0,0.02147954]
[1752499587452,0.39586202,121600.0,121590.0,0.02047954]
[1752499587632,0.39586202,121600.0,121590.0,0.02147954]
[1752499587985,0.38763841,121600.0,121590.0,0.02147954]
[1752499588195,0.39586202,121600.0,121590.0,0.02147954]
[1752499589395,0.38763888,121600.0,121590.0,0.02147954]
[1752499590456,0.37941527,121600.0,121590.0,0.02147954]
[1752499590958,0.38763888,121600.0,121590.0,0.02147954]
[1752499591124,0.26019888,121600.0,121590.0,0.02147954]
[1752499591351,0.65618969,121610.0,121590.0,0.02147954]
[1752499591543,0.12744,121600.0,121590.0,0.02147954]
[1752499591971,0.13566307,121600.0,121590.0,0.02147954]
[1752499592168,0.01644628,121600.0,121590.0,0.02147954]
[1752499592375,0.17105863,121600.0,121590.0,0.02147954]
[1752499592615,0.1792817,121600.0,121590.0,0.02147954]
[1752499592840,0.18750497,121600.0,121590.0,0.02147954]
[1752499593138,0.18750504,121600.0,121590.0,0.02147954]
[1752499593534,0.01480802,121600.0,121590.0,0.02147954]
[1752499593746,0.01480802,121600.0,121590.0,0.0214769]
[1752499594143,0.18750504,121600.0,121590.0,0.0214769]
[1752499594578,0.18750497,121600.0,121590.0,0.0214769]
[1752499594821,0.02303129,121600.0,121590.0,0.0214769]
[1752499595029,0.01480802,121600.0,121590.0,0.0214769]
[1752499596213,0.00822307,121600.0,121590.0,0.0214769]
[1752499596451,0.14388628,121600.0,121590.0,0.0214769]
[1752499596618,0.14388628,121600.0,121590.0,0.02147527]
[1752499597951,0.15210962,121600.0,121590.0,0.02147527]
[1752499598370,0.14388628,121600.0,121590.0,0.02147527]
[1752499600100,0.01644628,121600.0,121590.0,0.02147527]
[1752499600308,0.14388628,121600.0,121590.0,0.02147527]
[1752499602314,0.14388628,121600.0,121590.0,0.00608]
[1752499602518,0.13402516,121600.0,121590.0,0.02147228]
[1752499602873,0.14224837,121600.0,121590.0,0.02147228]
[1752499603836,0.13402516,121600.0,121590.0,0.02147228]
[1752499605087,0.14224837,121600.0,121590.0,0.02147228]
[1752499605296,0.13402516,121600.0,121590.0,0.02147228]
[1752499605500,0.13402516,121600.0,121590.0,0.02147065]
[1752499605704,0.14224837,121600.0,121590.0,0.02147065]
[1752499606124,0.04104387,121610.0,121590.0,0.46320293]
[1752499606307,0.12828352,121610.0,121600.0,0.37863228]
[1752499606516,0.12828352,121610.0,121600.0,0.39924293]
[1752499606725,0.00088352,121610.0,121600.0,0.02061065]
[1752499607165,0.08770584,121620.0,121600.0,0.02061065]
[1752499607383,0.38777549,121620.0,121600.0,0.02061065]
[1752499607601,0.38777542,121620.0,121600.0,0.02061065]
[1752499608036,0.22332803,121620.0,121600.0,0.02061065]
[1752499608449,0.38777549,121620.0,121600.0,0.02061065]
[1752499608662,0.26037549,121620.0,121600.0,0.02061065]
[1752499608885,0.1274,121610.0,121600.0,0.02061065]
[1752499609300,0.26037549,121620.0,121600.0,0.02061065]
[1752499609518,0.02849015,121610.0,121600.0,0.39812885]
[1752499609725,0.2345461,121620.0,121610.0,0.00317]
[1752499609927,0.2365261,121620.0,121610.0,0.02061065]
[1752499610415,0.20462617,121620.0,121610.0,0.02061065]
[1752499610791,0.07722617,121620.0,121610.0,0.02061065]
[1752499610997,0.2046261,121620.0,121610.0,0.02066167]
[1752499611209,0.02770246,121620.0,121610.0,0.39928935]
[1752499611413,0.02770246,121620.0,121610.0,0.02065707]
[1752499612826,0.01784332,121620.0,121610.0,0.02065707]
[1752499613030,0.58400367,121630.0,121610.0,0.02065707]
[1752499613031,0.99453595,121630.0,121610.0,0.02065707]
[1752499613236,1.00275726,121630.0,121610.0,0.01748707]
[1752499613402,0.46082699,121630.0,121610.0,0.01748707]
[1752499613608,0.00198,121620.0,121600.0,0.04412164]
[1752499613820,0.10034817,121630.0,121610.0,0.00522]
[1752499614035,0.09212699,121630.0,121620.0,0.00317]
[1752499614230,0.06082699,121630.0,121620.0,0.00522]
[1752499614631,0.02892699,121630.0,121620.0,0.29978]
[1752499614836,0.06082699,121630.0,121620.0,0.26738]
[1752499615753,0.45590169,121630.0,121620.0,0.26738]
[1752499615962,0.48096038,121630.0,121620.0,0.26738]
[1752499616199,0.48096038,121630.0,121620.0,0.26838]
[1752499616407,0.47932304,121630.0,121620.0,0.26838]
[1752499616613,0.47932283,121630.0,121620.0,0.26838]
[1752499617227,0.39770068,121630.0,121620.0,0.26838]
[1752499618556,0.0190684,121630.0,121620.0,0.26838]
[1752499618765,0.39770068,121630.0,121620.0,0.26838]
[1752499619006,0.06478207,121640.0,121620.0,0.26838]
[1752499619007,0.0632,121640.0,121620.0,0.26838]
[1752499619194,0.4521923,121640.0,121620.0,0.26838]
[1752499619400,0.44191601,121640.0,121630.0,0.00317]
[1752499619612,0.44191601,121640.0,121630.0,0.00522]
[1752499619613,0.45013638,121640.0,121630.0,0.00522]
[1752499619813,0.45211638,121640.0,121630.0,0.00522]
[1752499619967,0.4807308,121640.0,121630.0,0.00522]
[1752499620390,0.66159166,121640.0,121630.0,0.00522]
[1752499620591,0.66159166,121640.0,121620.0,0.001]
[1752499620592,0.25229692,121630.0,121620.0,0.13188]
[1752499620795,0.07964357,121620.0,121610.0,0.13088]
[1752499621015,0.46847777,121620.0,121610.0,0.00522]
[1752499621218,0.452034,121620.0,121610.0,0.00522]
[1752499621436,0.452034,121620.0,121610.0,0.1361]
[1752499621636,0.41251228,121620.0,121610.0,0.00522]
[1752499621844,0.03388,121620.0,121610.0,0.00522]
[1752499622043,0.41053228,121620.0,121610.0,0.13602]
[1752499622688,0.41053228,121620.0,121610.0,0.13802]
[1752499623235,0.41053228,121620.0,121610.0,0.13902]
[1752499623438,0.0319,121620.0,121610.0,0.13902]
[1752499623648,0.41053228,121620.0,121610.0,0.13902]
[1752499624292,0.41053228,121620.0,121610.0,0.47902]
[1752499625804,0.0614,121630.0,121610.0,0.39397714]
[1752499626013,0.40873228,121630.0,121620.0,0.00317]
[1752499626325,0.40873228,121630.0,121620.0,0.02057714]
[1752499627318,0.40873228,121630.0,121620.0,0.02157714]
[1752499627750,0.40873228,121630.0,121620.0,0.0215784]
[1752499627950,0.41695332,121630.0,121620.0,0.0215784]
[1752499628345,0.03832104,121630.0,121620.0,0.0215784]
[1752499628693,0.41695332,121630.0,121620.0,0.0215784]
[1752499628948,0.398873,121630.0,121620.0,0.02157954]
[1752499630710,0.02024072,121630.0,121620.0,0.02157954]
[1752499631947,0.400853,121630.0,121620.0,0.02157954]
[1752499632151,0.431253,121630.0,121620.0,0.02157954]
[1752499633844,0.43947404,121630.0,121620.0,0.02157954]
[1752499634052,0.431253,121630.0,121620.0,0.02157954]
[1752499634459,0.05262072,121630.0,121620.0,0.02157954]
[1752499634661,0.431253,121630.0,121620.0,0.02157954]
[1752499635274,0.400853,121630.0,121620.0,0.02157954]
[1752499635484,0.398873,121630.0,121620.0,0.02157954]
[1752499635685,0.02024072,121630.0,121620.0,0.02157954]
[1752499636518,0.02024072,121630.0,121620.0,0.15179439]
[1752499638027,0.06304176,121630.0,121620.0,0.15163439]
[1752499638222,0.06304176,121630.0,121620.0,0.02159439]
[1752499638456,0.61432833,121630.0,121620.0,0.14846439]
[1752499638630,0.40953228,121630.0,121620.0,0.15175439]
[1752499638774,0.39803655,121630.0,121620.0,0.15175439]
[1752499638983,0.43093655,121630.0,121620.0,0.15175439]
[1752499639421,0.42271544,121630.0,121620.0,0.13638]
[1752499639768,0.42271544,121630.0,121620.0,0.15176156]
[1752499640439,0.0638,121630.0,121620.0,0.15172156]
[1752499640634,0.07202104,121630.0,121620.0,0.15172156]
[1752499640977,0.0638,121630.0,121620.0,0.15172156]
[1752499642198,0.0638,121630.0,121620.0,0.02172156]
[1752499642604,0.0638,121630.0,121620.0,0.15160156]
[1752499643039,0.44243228,121630.0,121620.0,0.15160156]
[1752499643252,0.0638,121630.0,121620.0,0.15160156]
[1752499644308,0.0638,121630.0,121620.0,0.02172156]
[1752499644510,0.44825086,121640.0,121620.0,0.02172156]
[1752499644709,0.44825086,121640.0,121630.0,0.0032]
[1752499644710,0.19039815,121640.0,121630.0,0.0032]
[1752499644915,0.19857858,121640.0,121630.0,0.02072156]
[1752499645285,0.22305815,121640.0,121630.0,0.00534]
[1752499645520,0.22305815,121640.0,121630.0,0.02072503]
[1752499645706,0.23321858,121640.0,121630.0,0.02072503]
[1752499646128,0.22499815,121640.0,121630.0,0.02072503]
[1752499646339,0.09527815,121640.0,121630.0,0.02072503]
[1752499646554,0.22499815,121640.0,121630.0,0.02072503]
[1752499646772,0.16039815,121640.0,121630.0,0.02072503]
[1752499646989,0.16039815,121640.0,121630.0,0.80435731]
[1752499646990,0.02869815,121640.0,121630.0,0.80435731]
[1752499647208,8.373e-05,121640.0,121630.0,0.93403731]
[1752499647630,8.373e-05,121640.0,121630.0,0.55540503]
[1752499647878,8.373e-05,121640.0,121630.0,0.93403731]
[1752499648821,0.01643682,121670.0,121650.0,0.0626]
[1752499649101,0.17965553,121680.0,121660.0,0.26466]
[1752499649365,0.04191079,121680.0,121660.0,0.28004503]
[1752499649641,0.10137521,121680.0,121670.0,0.0032]
[1752499649909,0.10335521,121680.0,121670.0,0.01858503]
[1752499650484,0.06159734,121680.0,121670.0,0.01858503]
[1752499650694,0.06159734,121680.0,121670.0,0.02072503]
[1752499650949,0.06981521,121680.0,121670.0,0.02072503]
[1752499651185,0.06159734,121680.0,121670.0,0.02072503]
[1752499651416,0.07803301,121680.0,121670.0,0.02072503]
[1752499651650,0.0286411,121680.0,121670.0,0.02072503]
[1752499652329,0.0286411,121680.0,121670.0,0.05382503]
[1752499652917,0.0286411,121680.0,121670.0,0.05482503]
[1752499653140,0.0286411,121680.0,121670.0,0.02172503]
[1752499654197,0.0286411,121680.0,121670.0,0.02165119]
[1752499654423,0.0286411,121680.0,121670.0,0.15109119]
[1752499655336,0.0286411,121680.0,121670.0,0.02165119]
[1752499655690,0.00015313,121680.0,121670.0,0.18340592]
[1752499655900,0.02807558,121680.0,121670.0,0.05195119]
[1752499656093,0.00015313,121680.0,121670.0,0.18127119]
[1752499657842,0.02859402,121680.0,121670.0,0.18127119]
[1752499658269,0.00015313,121680.0,121670.0,0.18127119]
[1752499658985,0.37863228,121680.0,121670.0,0.15081119]
[1752499659190,0.37763228,121680.0,121670.0,0.15081119]
[1752499660490,0.40133141,121690.0,121670.0,0.18336592]
[1752499660739,0.37863228,121690.0,121680.0,0.0032]
[1752499660947,0.37863228,121690.0,121680.0,0.02065119]
[1752499661158,0.57885439,121700.0,121680.0,0.02065119]
[1752499661588,0.37863228,121690.0,121680.0,0.02065119]
[1752499661809,0.59794031,121700.0,121680.0,0.02065119]
[1752499662048,0.59794031,121700.0,121680.0,0.05060575]
[1752499662260,0.05828803,121700.0,121690.0,0.0032]
[1752499662464,0.02818803,121700.0,121690.0,0.27873119]
[1752499662890,0.02818803,121700.0,121690.0,0.27869495]
[1752499663536,0.02818803,121700.0,121690.0,0.31109495]
[1752499663742,0.02818803,121700.0,121690.0,0.34399495]
[1752499664305,0.02818803,121700.0,121690.0,0.68399495]
[1752499664523,0.00044,121700.0,121690.0,0.68399495]
[1752499664982,0.00044,121700.0,121690.0,0.65109495]
[1752499665336,0.00044,121700.0,121690.0,0.64865495]
[1752499665733,0.00044,121700.0,121690.0,0.64864382]
[1752499666557,0.00044,121700.0,121690.0,0.68104382]
[1752499667571,0.00044,121700.0,121690.0,1.0596761]
[1752499667992,0.00044,121700.0,121690.0,0.68104382]
[1752499668591,0.00044,121700.0,121690.0,0.64864382]
[1752499668808,0.01595325,121700.0,121690.0,0.64864382]
[1752499669017,0.0317,121710.0,121690.0,0.64964382]
[1752499669315,0.0317,121710.0,121690.0,0.64864382]
[1752499669753,0.0317,121710.0,121690.0,0.65064382]
[1752499669954,0.0317,121710.0,121690.0,0.64864382]
[1752499670331,0.0317,121710.0,121690.0,0.65064382]
[1752499670534,0.02184814,121710.0,121690.0,0.64964382]
[1752499670690,0.02184814,121710.0,121690.0,0.68254382]
[1752499670927,0.02184814,121710.0,121700.0,0.00304]
[1752499671129,0.02184814,121710.0,121700.0,0.02045382]
[1752499671329,0.02387814,121710.0,121700.0,0.02045382]
[1752499671532,0.02387814,121710.0,121700.0,0.00519]
[1752499671722,0.02387814,121710.0,121700.0,0.0204549]
[1752499672753,0.00203,121710.0,121700.0,0.0214549]
[1752499673467,0.45363391,121710.0,121700.0,0.0184149]
[1752499673670,0.62705892,121710.0,121700.0,0.1447849]
[1752499673842,0.6352749,121710.0,121700.0,0.0162649]
[1752499674192,0.63527483,121710.0,121700.0,0.0162649]
[1752499674392,0.62705892,121710.0,121700.0,0.0162649]
[1752499674624,0.07588571,121710.0,121700.0,0.0162649]
[1752499674800,0.44835814,121710.0,121700.0,0.0162649]
[1752499675008,0.44630228,121710.0,121700.0,0.1447449]
[1752499675419,0.44630228,121710.0,121700.0,0.12948]
[1752499675625,0.45451792,121710.0,121700.0,0.001]
[1752499675840,0.46273369,121710.0,121700.0,0.12944]
[1752499676044,0.46273369,121710.0,121700.0,0.14472557]
[1752499676240,0.48039834,121710.0,121700.0,0.14472557]
[1752499676478,0.09355042,121710.0,121700.0,0.14472557]
[1752499676798,0.47423856,121710.0,121700.0,0.14472557]
[1752499677094,0.4721827,121710.0,121700.0,0.14472557]
[1752499677318,0.4721827,121710.0,121700.0,0.001]
[1752499677444,0.48039841,121710.0,121700.0,0.1294]
[1752499677648,0.48039834,121710.0,121700.0,0.1294]
[1752499678829,0.4721827,121710.0,121700.0,0.1294]
[1752499679416,0.4721827,121710.0,121700.0,0.001]
[1752499679709,0.48039841,121710.0,121700.0,0.001]
[1752499679917,0.4721827,121710.0,121700.0,0.001]
[1752499680144,0.63650773,121710.0,121700.0,0.001]
[1752499680405,0.65926435,121710.0,121700.0,0.001]
[1752499680629,0.6674806,121710.0,121700.0,0.001]
[1752499681047,0.7957206,121710.0,121700.0,0.001]
[1752499681273,0.28884792,121710.0,121700.0,0.001]
[1752499681478,0.19223545,121710.0,121700.0,0.00315]
[1752499681705,0.77862858,121710.0,121700.0,0.001]
[1752499681918,0.78684435,121710.0,121690.0,0.59652]
[1752499682126,0.79506019,121710.0,121700.0,0.001]
[1752499682379,0.78684435,121710.0,121690.0,0.59956]
[1752499682801,0.65034858,121710.0,121690.0,0.34304]
[1752499683025,0.76881641,121710.0,121690.0,0.48667971]
[1752499683237,0.76587641,121710.0,121690.0,0.48667971]
[1752499683446,0.77413212,121710.0,121690.0,0.48671971]
[1752499683874,0.76591641,121710.0,121690.0,0.48771971]
[1752499684077,0.76427995,121710.0,121690.0,0.48771971]
[1752499684284,0.75606424,121710.0,121690.0,0.48771971]
[1752499684488,0.76427988,121710.0,121690.0,0.48771971]
[1752499684690,0.77249559,121710.0,121690.0,0.48771971]
[1752499685005,0.76427988,121710.0,121690.0,0.4724]
[1752499685418,0.64413565,121710.0,121690.0,0.4724]
[1752499685623,0.77245565,121710.0,121690.0,0.47236]
[1752499685836,0.78067156,121710.0,121690.0,0.47236]
[1752499686075,0.76423988,121710.0,121690.0,0.47236]
[1752499686258,0.38061228,121700.0,121690.0,0.47447]
[1752499686517,0.60705081,121700.0,121690.0,0.46928]
[1752499688279,0.61526712,121700.0,121690.0,0.46928]
[1752499688631,0.60705081,121700.0,121690.0,0.46828]
[1752499689042,0.60705081,121700.0,121690.0,0.46928]
[1752499690388,0.60705081,121700.0,121690.0,0.47232]
[1752499690994,0.60705081,121700.0,121690.0,0.48767179]
[1752499691526,0.57535081,121700.0,121690.0,0.48767179]
[1752499692165,0.57535081,121700.0,121690.0,0.48463179]
[1752499692373,0.60675081,121700.0,121690.0,0.48463179]
[1752499692834,0.63772503,121700.0,121690.0,0.01635179]
[1752499693041,0.76875503,121700.0,121690.0,0.01635179]
[1752499694309,0.76875503,121700.0,121690.0,0.01535179]
[1752499694718,0.16436554,121680.0,121670.0,0.46828]
[1752499694945,0.69391407,121680.0,121670.0,0.3575068]
[1752499695190,0.72661407,121680.0,121670.0,0.34215]
[1752499695417,0.73483173,121680.0,121670.0,0.34215]
[1752499695641,0.57210228,121680.0,121670.0,0.34215]
[1752499695864,0.73646782,121680.0,121670.0,0.34519]
[1752499696829,0.35783554,121680.0,121670.0,0.34519]
[1752499697057,0.73646782,121680.0,121670.0,0.34519]
[1752499697279,0.60818782,121680.0,121670.0,0.34519]
[1752499698302,0.60818782,121680.0,121670.0,0.36053647]
[1752499698516,0.61640555,121680.0,121670.0,0.36053647]
[1752499698719,0.60818782,121680.0,121670.0,0.36053647]
[1752499699544,0.61640555,121680.0,121670.0,0.36053647]
[1752499699750,0.60818782,121680.0,121670.0,0.36053647]
[1752499699957,0.61640555,121680.0,121670.0,0.36053647]
[1752499700169,0.60818782,121680.0,121670.0,0.36053647]
[1752499701174,0.61640548,121680.0,121670.0,0.36053647]
[1752499701470,0.60818782,121680.0,121670.0,0.36053647]
[1752499701703,0.61640555,121680.0,121670.0,0.36053647]
[1752499701932,0.60818782,121680.0,121670.0,0.36053647]
[1752499702372,0.61640548,121680.0,121670.0,0.36053647]
[1752499702584,0.60818782,121680.0,121670.0,0.36053647]
[1752499702822,0.22955554,121680.0,121670.0,0.36053647]
[1752499703027,0.61640548,121680.0,121670.0,0.36053647]
[1752499703237,0.61441548,121680.0,121670.0,0.35838647]
[1752499703587,0.61441548,121680.0,121670.0,0.48662647]
[1752499703800,0.99304776,121680.0,121670.0,0.01838647]
[1752499704006,1.14412702,121680.0,121670.0,0.01838647]
[1752499704213,1.01580702,121680.0,121670.0,0.01838647]
[1752499704409,1.04045502,121680.0,121670.0,0.01838647]
[1752499704775,1.16885502,121680.0,121670.0,0.01938647]
[1752499705190,1.16885502,121680.0,121670.0,0.01634647]
[1752499706683,1.16885502,121680.0,121670.0,0.01633699]
[1752499706856,1.04045502,121680.0,121670.0,0.01633699]
[1752499707061,1.17091502,121680.0,121670.0,0.01733699]
[1752499707268,0.66396274,121680.0,121670.0,0.01733699]
[1752499707613,0.79328274,121680.0,121670.0,0.0168652]
[1752499707827,1.17191502,121680.0,121670.0,0.0168652]
[1752499708647,0.79328274,121680.0,121670.0,0.0168652]